[Event "November 21 Early 2023"]
[Site "https://www.chess.com"]
[Date "2023.11.21"]
[Round "9"]
[White "Miszler, Levente"]
[Black "Deng, Henry"]
[Result "0-1"]
[Board "95"]
[TimeControl "180+1"]
[WhiteFideId "763276"]
[BlackFideId "30965454"]
[WhiteElo "2186"]
[BlackElo "2546"]
[WhiteTeam "HUN"]
[BlackTeam "USA"]
[WhiteClock "0:02:02"]
[BlackClock "0:01:51"]

1. d4 {[%clk 0:02:56]}  d5 {[%clk 0:02:59]} 2. Nf3 {[%clk 0:02:56]}  Nf6 {[%clk 0:02:59]} 3. Bf4 {[%clk 0:02:57]}  c5 {[%clk 0:02:58]} 4. e3 {[%clk 0:02:57]}  Nc6 {[%clk 0:02:55]} 5. Nbd2 {[%clk 0:02:57]}  cxd4 {[%clk 0:02:40]} 6. exd4 {[%clk 0:02:56]}  Bg4 {[%clk 0:02:40]} 7. c3 {[%clk 0:02:56]}  e6 {[%clk 0:02:40]} 8. Bd3 {[%clk 0:02:53]}  Bd6 {[%clk 0:02:41]} 9. Bxd6 {[%clk 0:02:52]}  Qxd6 {[%clk 0:02:42]} 10. Qb3 {[%clk 0:02:51]}  Qc7 {[%clk 0:02:37]} 11. O-O {[%clk 0:02:49]}  O-O {[%clk 0:02:37]} 12. h3 {[%clk 0:02:49]}  Bxf3 {[%clk 0:02:37]} 13. Nxf3 {[%clk 0:02:49]}  Rab8 {[%clk 0:02:36]} 14. a4 {[%clk 0:02:48]}  a6 {[%clk 0:02:35]} 15. Rfe1 {[%clk 0:02:46]}  b5 {[%clk 0:02:22]} 16. axb5 {[%clk 0:02:47]}  axb5 {[%clk 0:02:23]} 17. Ra6 {[%clk 0:02:44]}  b4 {[%clk 0:02:22]} 18. c4 {[%clk 0:02:43]}  Na5 {[%clk 0:02:20]} 19. Qa2 {[%clk 0:02:40]}  Nxc4 {[%clk 0:02:16]} 20. Rc1 {[%clk 0:02:36]}  Qf4 {[%clk 0:02:11]} 21. Rxc4 {[%clk 0:02:30]}  dxc4 {[%clk 0:02:10]} 22. Bxc4 {[%clk 0:02:31]}  Rfc8 {[%clk 0:02:10]} 23. b3 {[%clk 0:02:25]}  Qc1+ {[%clk 0:02:01]} 24. Kh2 {[%clk 0:02:25]}  h6 {[%clk 0:02:01]} 25. Ra7 {[%clk 0:02:23]}  Rxc4 {[%clk 0:01:55]} 26. bxc4 {[%clk 0:02:22]}  b3 {[%clk 0:01:56]} 27. Qa5 {[%clk 0:02:07]}  b2 {[%clk 0:01:54]} 28. Qc7 {[%clk 0:02:07]}  Rf8 {[%clk 0:01:53]} 29. Ne5 {[%clk 0:02:07]}  Qf4+ {[%clk 0:01:51]} 30. g3 {[%clk 0:02:02]}  Qxf2+ {[%clk 0:01:51]} 0-1

[Event "November 21 Early 2023"]
[Site "https://www.chess.com"]
[Date "2023.11.21"]
[Round "9"]
[White "Estrada Nieto, Julian"]
[Black "Khater, Sherif"]
[Result "0-1"]
[Board "96"]
[TimeControl "180+1"]
[WhiteFideId "5101018"]
[BlackFideId "2034280"]
[WhiteElo "2161"]
[BlackElo "2540"]
[WhiteTeam "ESP"]
[BlackTeam "USA"]
[WhiteClock "0:01:30"]
[BlackClock "0:00:51"]

1. e4 {[%clk 0:03:00]}  a6 {[%clk 0:02:59]} 2. d4 {[%clk 0:02:59]}  c6 {[%clk 0:03:00]} 3. Nc3 {[%clk 0:02:59]}  d5 {[%clk 0:02:44]} 4. h3 {[%clk 0:02:56]}  dxe4 {[%clk 0:02:44]} 5. Nxe4 {[%clk 0:02:55]}  Nf6 {[%clk 0:02:43]} 6. Nxf6+ {[%clk 0:02:55]}  exf6 {[%clk 0:02:44]} 7. Nf3 {[%clk 0:02:42]}  Bd6 {[%clk 0:02:42]} 8. Bc4 {[%clk 0:02:38]}  O-O {[%clk 0:02:41]} 9. O-O {[%clk 0:02:38]}  Re8 {[%clk 0:02:38]} 10. Re1 {[%clk 0:02:35]}  Rxe1+ {[%clk 0:02:33]} 11. Qxe1 {[%clk 0:02:35]}  Nd7 {[%clk 0:02:31]} 12. Qe4 {[%clk 0:02:32]}  Nf8 {[%clk 0:02:30]} 13. Bf4 {[%clk 0:02:30]}  Bxf4 {[%clk 0:02:27]} 14. Qxf4 {[%clk 0:02:30]}  Be6 {[%clk 0:02:27]} 15. Bxe6 {[%clk 0:02:18]}  Nxe6 {[%clk 0:02:20]} 16. Qe3 {[%clk 0:02:18]}  Qd5 {[%clk 0:02:19]} 17. b3 {[%clk 0:02:18]}  b5 {[%clk 0:02:14]} 18. c3 {[%clk 0:02:15]}  Rd8 {[%clk 0:02:12]} 19. Re1 {[%clk 0:02:06]}  h6 {[%clk 0:02:06]} 20. Qe4 {[%clk 0:01:59]}  Qxe4 {[%clk 0:01:56]} 21. Rxe4 {[%clk 0:01:59]}  c5 {[%clk 0:01:57]} 22. dxc5 {[%clk 0:01:57]}  Nxc5 {[%clk 0:01:57]} 23. Rd4 {[%clk 0:01:56]}  Re8 {[%clk 0:01:55]} 24. Kf1 {[%clk 0:01:56]}  Rc8 {[%clk 0:01:54]} 25. Rd6 {[%clk 0:01:54]}  Ne4 {[%clk 0:01:52]} 26. Rxa6 {[%clk 0:01:50]}  Rxc3 {[%clk 0:01:43]} 27. Ra8+ {[%clk 0:01:46]}  Kh7 {[%clk 0:01:43]} 28. Nd4 {[%clk 0:01:45]}  b4 {[%clk 0:01:16]} 29. Ra4 {[%clk 0:01:41]}  Rc1+ {[%clk 0:01:11]} 30. Ke2 {[%clk 0:01:40]}  Nc3+ {[%clk 0:00:59]} 31. Kd2 {[%clk 0:01:40]}  Rd1+ {[%clk 0:00:54]} 32. Kc2 {[%clk 0:01:34]}  Rxd4 {[%clk 0:00:52]} 33. a3 {[%clk 0:01:30]}  Nxa4 {[%clk 0:00:51]} 0-1

[Event "November 21 Early 2023"]
[Site "https://www.chess.com"]
[Date "2023.11.21"]
[Round "9"]
[White "Hajiyev, Kanan"]
[Black "Palacio,Igor Da Paz"]
[Result "1-0"]
[Board "104"]
[TimeControl "180+1"]
[WhiteFideId "13404148"]
[BlackFideId "2121140"]
[WhiteElo "2102"]
[BlackElo "2126"]
[WhiteTeam "AZE"]
[BlackTeam "BRA"]
[WhiteClock "0:01:10"]
[BlackClock "0:00:00"]

1. d4 {[%clk 0:03:00]}  Nf6 {[%clk 0:02:59]} 2. Nf3 {[%clk 0:03:01]}  g6 {[%clk 0:03:00]} 3. c4 {[%clk 0:03:02]}  Bg7 {[%clk 0:03:00]} 4. g3 {[%clk 0:03:03]}  O-O {[%clk 0:03:01]} 5. Bg2 {[%clk 0:03:04]}  d6 {[%clk 0:03:01]} 6. O-O {[%clk 0:03:05]}  Nbd7 {[%clk 0:03:01]} 7. b3 {[%clk 0:03:06]}  e5 {[%clk 0:03:02]} 8. Bb2 {[%clk 0:03:07]}  Re8 {[%clk 0:03:02]} 9. dxe5 {[%clk 0:03:07]}  Ng4 {[%clk 0:03:02]} 10. Nc3 {[%clk 0:03:06]}  Ngxe5 {[%clk 0:03:02]} 11. Qc2 {[%clk 0:03:07]}  Nf6 {[%clk 0:02:52]} 12. Rad1 {[%clk 0:03:05]}  Qe7 {[%clk 0:02:49]} 13. Nxe5 {[%clk 0:02:59]}  dxe5 {[%clk 0:02:49]} 14. Nd5 {[%clk 0:02:59]}  Nxd5 {[%clk 0:02:47]} 15. cxd5 {[%clk 0:03:00]}  Bf5 {[%clk 0:01:23]} 16. e4 {[%clk 0:02:54]}  Bg4 {[%clk 0:01:21]} 17. f3 {[%clk 0:02:54]}  Bd7 {[%clk 0:01:16]} 18. Qxc7 {[%clk 0:02:54]}  Bb5 {[%clk 0:01:10]} 19. Qxe7 {[%clk 0:02:53]}  Rxe7 {[%clk 0:01:11]} 20. Rf2 {[%clk 0:02:48]}  f6 {[%clk 0:01:06]} 21. Bf1 {[%clk 0:02:31]}  Bxf1 {[%clk 0:01:04]} 22. Rfxf1 {[%clk 0:02:25]}  Bh6 {[%clk 0:01:00]} 23. Bc1 {[%clk 0:02:24]}  Bf8 {[%clk 0:00:52]} 24. Be3 {[%clk 0:02:17]}  b6 {[%clk 0:00:51]} 25. Rc1 {[%clk 0:02:17]}  Rd7 {[%clk 0:00:50]} 26. Rc6 {[%clk 0:02:13]}  Bd6 {[%clk 0:00:48]} 27. Rfc1 {[%clk 0:02:11]}  Rad8 {[%clk 0:00:41]} 28. h4 {[%clk 0:02:10]}  Kg7 {[%clk 0:00:31]} 29. a4 {[%clk 0:02:10]}  h6 {[%clk 0:00:28]} 30. Kg2 {[%clk 0:02:10]}  g5 {[%clk 0:00:21]} 31. h5 {[%clk 0:02:10]}  Kf7 {[%clk 0:00:21]} 32. Kh3 {[%clk 0:02:10]}  f5 {[%clk 0:00:16]} 33. exf5 {[%clk 0:02:07]}  Kf6 {[%clk 0:00:16]} 34. g4 {[%clk 0:01:50]}  Ke7 {[%clk 0:00:16]} 35. Kg2 {[%clk 0:01:40]}  Kf7 {[%clk 0:00:16]} 36. Kf2 {[%clk 0:01:38]}  Bf8 {[%clk 0:00:11]} 37. Rc7 {[%clk 0:01:29]}  Ba3 {[%clk 0:00:08]} 38. R1c6 {[%clk 0:01:25]}  Bf8 {[%clk 0:00:02]} 39. Ke2 {[%clk 0:01:13]}  Bd6 {[%clk 0:00:00]} 40. Rxd6 {[%clk 0:01:10]} 1-0

[Event "November 21 Early 2023"]
[Site "https://www.chess.com"]
[Date "2023.11.21"]
[Round "9"]
[White "Eugene, Floryan"]
[Black "Malikova777"]
[Result "1-0"]
[Board "105"]
[TimeControl "180+1"]
[WhiteFideId "20694784"]
[WhiteElo "2369"]
[BlackElo "2322"]
[WhiteTeam "FRA"]
[WhiteClock "0:00:57"]
[BlackClock "0:00:00"]

1. Nf3 {[%clk 0:03:00]}  Nf6 {[%clk 0:02:49]} 2. d4 {[%clk 0:03:00]}  g6 {[%clk 0:02:50]} 3. c4 {[%clk 0:03:00]}  Bg7 {[%clk 0:02:50]} 4. Nc3 {[%clk 0:03:01]}  O-O {[%clk 0:02:50]} 5. e4 {[%clk 0:03:01]}  d6 {[%clk 0:02:51]} 6. Be2 {[%clk 0:03:02]}  Nc6 {[%clk 0:02:47]} 7. O-O {[%clk 0:03:02]}  e5 {[%clk 0:02:48]} 8. d5 {[%clk 0:03:03]}  Ne7 {[%clk 0:02:48]} 9. b4 {[%clk 0:03:03]}  Nd7 {[%clk 0:02:47]} 10. a4 {[%clk 0:03:03]}  a5 {[%clk 0:02:45]} 11. Ba3 {[%clk 0:03:03]}  axb4 {[%clk 0:02:41]} 12. Bxb4 {[%clk 0:03:04]}  f5 {[%clk 0:02:37]} 13. Nd2 {[%clk 0:02:50]}  f4 {[%clk 0:02:21]} 14. Bg4 {[%clk 0:02:44]}  Nf6 {[%clk 0:02:10]} 15. Bxc8 {[%clk 0:02:44]}  Qxc8 {[%clk 0:02:11]} 16. c5 {[%clk 0:02:45]}  Qd7 {[%clk 0:02:02]} 17. cxd6 {[%clk 0:02:36]}  cxd6 {[%clk 0:02:03]} 18. Nc4 {[%clk 0:02:36]}  Rfc8 {[%clk 0:01:47]} 19. Nb6 {[%clk 0:02:34]}  Qd8 {[%clk 0:01:35]} 20. Nxa8 {[%clk 0:02:33]}  Rxa8 {[%clk 0:01:35]} 21. Nb5 {[%clk 0:02:33]}  Ne8 {[%clk 0:01:31]} 22. Rc1 {[%clk 0:02:30]}  g5 {[%clk 0:01:16]} 23. Qg4 {[%clk 0:02:25]}  Ng6 {[%clk 0:01:07]} 24. Qe6+ {[%clk 0:02:23]}  Kh8 {[%clk 0:01:07]} 25. Nxd6 {[%clk 0:02:15]}  Nxd6 {[%clk 0:01:04]} 26. Qxd6 {[%clk 0:02:14]}  Qe8 {[%clk 0:00:55]} 27. Qe6 {[%clk 0:02:02]}  Qd8 {[%clk 0:00:18]} 28. Rc2 {[%clk 0:01:45]}  f3 {[%clk 0:00:13]} 29. Rfc1 {[%clk 0:01:44]}  Nf4 {[%clk 0:00:13]} 30. Qe7 {[%clk 0:01:20]}  Ne2+ {[%clk 0:00:11]} 31. Rxe2 {[%clk 0:01:16]}  Qxe7 {[%clk 0:00:10]} 32. Bxe7 {[%clk 0:01:16]}  fxe2 {[%clk 0:00:10]} 33. d6 {[%clk 0:01:12]}  Kg8 {[%clk 0:00:10]} 34. d7 {[%clk 0:01:10]}  Bf8 {[%clk 0:00:07]} 35. d8=Q {[%clk 0:01:10]}  Rxd8 {[%clk 0:00:08]} 36. Bxd8 {[%clk 0:01:10]}  Bb4 {[%clk 0:00:09]} 37. Bxg5 {[%clk 0:01:02]}  e1=Q+ {[%clk 0:00:08]} 38. Rxe1 {[%clk 0:01:02]}  Bxe1 {[%clk 0:00:08]} 39. f3 {[%clk 0:01:00]}  Kf7 {[%clk 0:00:08]} 40. Kf1 {[%clk 0:01:01]}  Bb4 {[%clk 0:00:08]} 41. Ke2 {[%clk 0:01:01]}  Ke6 {[%clk 0:00:08]} 42. Kd3 {[%clk 0:01:01]}  Bc5 {[%clk 0:00:08]} 43. Kc4 {[%clk 0:01:01]}  Bg1 {[%clk 0:00:09]} 44. h3 {[%clk 0:01:01]}  h5 {[%clk 0:00:09]} 45. Kb5 {[%clk 0:01:01]}  Bf2 {[%clk 0:00:07]} 46. Bd8 {[%clk 0:01:01]}  Kd7 {[%clk 0:00:07]} 47. Bb6 {[%clk 0:01:01]}  Be1 {[%clk 0:00:06]} 48. Be3 {[%clk 0:00:58]}  Kc7 {[%clk 0:00:04]} 49. Kc5 {[%clk 0:00:58]}  Bc3 {[%clk 0:00:01]} 50. Kd5 {[%clk 0:00:58]}  Kd7 {[%clk 0:00:00]} 51. Bc5 {[%clk 0:00:57]} 1-0

[Event "November 21 Early 2023"]
[Site "https://www.chess.com"]
[Date "2023.11.21"]
[Round "9"]
[White "Sadubayev, Airat"]
[Black "Khromkin, Andrey"]
[Result "0-1"]
[Board "107"]
[TimeControl "180+1"]
[WhiteFideId "13713264"]
[BlackFideId "4154126"]
[WhiteElo "2137"]
[BlackElo "2451"]
[WhiteTeam "KAZ"]
[BlackTeam "RUS"]
[WhiteClock "0:00:11"]
[BlackClock "0:00:29"]

1. d4 {[%clk 0:03:00]}  d5 {[%clk 0:02:56]} 2. c4 {[%clk 0:03:00]}  dxc4 {[%clk 0:02:56]} 3. e4 {[%clk 0:03:00]}  e5 {[%clk 0:02:55]} 4. Nf3 {[%clk 0:02:58]}  Bb4+ {[%clk 0:02:55]} 5. Nc3 {[%clk 0:02:40]}  exd4 {[%clk 0:02:54]} 6. Nxd4 {[%clk 0:02:40]}  c5 {[%clk 0:01:58]} 7. Nf3 {[%clk 0:02:10]}  Qxd1+ {[%clk 0:01:57]} 8. Kxd1 {[%clk 0:02:11]}  Be6 {[%clk 0:01:54]} 9. Ng5 {[%clk 0:02:05]}  Nf6 {[%clk 0:01:48]} 10. Nxe6 {[%clk 0:01:59]}  fxe6 {[%clk 0:01:48]} 11. f3 {[%clk 0:01:44]}  Nc6 {[%clk 0:01:37]} 12. Bxc4 {[%clk 0:01:40]}  Rd8+ {[%clk 0:01:32]} 13. Ke2 {[%clk 0:01:28]}  Nd4+ {[%clk 0:01:26]} 14. Kf2 {[%clk 0:01:22]}  O-O {[%clk 0:01:21]} 15. a3 {[%clk 0:01:09]}  Bxc3 {[%clk 0:01:20]} 16. bxc3 {[%clk 0:01:08]}  Nxe4+ {[%clk 0:01:21]} 17. Ke3 {[%clk 0:00:53]}  Nxc3 {[%clk 0:01:16]} 18. Bb2 {[%clk 0:00:39]}  Nc2+ {[%clk 0:00:53]} 19. Kf2 {[%clk 0:00:37]}  Rd2+ {[%clk 0:00:40]} 20. Kg3 {[%clk 0:00:36]}  Ne2+ {[%clk 0:00:40]} 21. Kf2 {[%clk 0:00:20]}  Nf4+ {[%clk 0:00:31]} 22. Kf1 {[%clk 0:00:17]}  Ne3+ {[%clk 0:00:29]} 23. Ke1 {[%clk 0:00:16]}  Rxb2 {[%clk 0:00:29]} 24. Rc1 {[%clk 0:00:11]}  Nfxg2# {[%clk 0:00:29]} 0-1

[Event "November 21 Early 2023"]
[Site "https://www.chess.com"]
[Date "2023.11.21"]
[Round "9"]
[White "GatoRojo150"]
[Black "Rosenberg, Evan S"]
[Result "1-0"]
[Board "108"]
[TimeControl "180+1"]
[BlackFideId "2019299"]
[WhiteElo "2562"]
[BlackElo "2434"]
[BlackTeam "USA"]
[WhiteClock "0:01:04"]
[BlackClock "0:00:00"]

1. e4 {[%clk 0:03:00]}  g6 {[%clk 0:02:56]} 2. d4 {[%clk 0:02:59]}  Bg7 {[%clk 0:02:56]} 3. Nc3 {[%clk 0:02:59]}  d6 {[%clk 0:02:49]} 4. Bc4 {[%clk 0:02:58]}  e6 {[%clk 0:02:36]} 5. Nf3 {[%clk 0:02:57]}  a6 {[%clk 0:02:34]} 6. Bb3 {[%clk 0:02:55]}  h6 {[%clk 0:02:29]} 7. Qe2 {[%clk 0:02:53]}  Nd7 {[%clk 0:02:24]} 8. e5 {[%clk 0:02:53]}  d5 {[%clk 0:02:12]} 9. Nd1 {[%clk 0:02:52]}  c5 {[%clk 0:02:10]} 10. c3 {[%clk 0:02:53]}  Ne7 {[%clk 0:02:08]} 11. h4 {[%clk 0:02:52]}  b5 {[%clk 0:02:00]} 12. h5 {[%clk 0:02:51]}  g5 {[%clk 0:02:00]} 13. Nh2 {[%clk 0:02:50]}  cxd4 {[%clk 0:01:48]} 14. cxd4 {[%clk 0:02:50]}  Nf5 {[%clk 0:01:49]} 15. Be3 {[%clk 0:02:48]}  Nxe3 {[%clk 0:01:46]} 16. fxe3 {[%clk 0:02:43]}  f5 {[%clk 0:01:30]} 17. exf6 {[%clk 0:02:39]}  Nxf6 {[%clk 0:01:30]} 18. O-O {[%clk 0:02:37]}  O-O {[%clk 0:01:29]} 19. Bc2 {[%clk 0:02:35]}  Qd6 {[%clk 0:01:22]} 20. Nf2 {[%clk 0:02:31]}  e5 {[%clk 0:01:20]} 21. dxe5 {[%clk 0:02:09]}  Qxe5 {[%clk 0:01:19]} 22. Qd3 {[%clk 0:02:09]}  Ne4 {[%clk 0:00:53]} 23. Nxe4 {[%clk 0:02:03]}  dxe4 {[%clk 0:00:54]} 24. Qxe4 {[%clk 0:01:50]}  Qxe4 {[%clk 0:00:25]} 25. Bxe4 {[%clk 0:01:51]}  Ra7 {[%clk 0:00:20]} 26. Bd5+ {[%clk 0:01:50]}  Kh8 {[%clk 0:00:19]} 27. Rxf8+ {[%clk 0:01:49]}  Bxf8 {[%clk 0:00:20]} 28. e4 {[%clk 0:01:46]}  Bc5+ {[%clk 0:00:19]} 29. Kh1 {[%clk 0:01:45]}  Re7 {[%clk 0:00:16]} 30. Nf3 {[%clk 0:01:45]}  Bg4 {[%clk 0:00:15]} 31. Rc1 {[%clk 0:01:44]}  Be3 {[%clk 0:00:14]} 32. Re1 {[%clk 0:01:42]}  Bc5 {[%clk 0:00:12]} 33. b3 {[%clk 0:01:33]}  Bxh5 {[%clk 0:00:12]} 34. Rc1 {[%clk 0:01:29]}  Bd6 {[%clk 0:00:12]} 35. Rc6 {[%clk 0:01:28]}  Bf4 {[%clk 0:00:09]} 36. Rxh6+ {[%clk 0:01:28]}  Rh7 {[%clk 0:00:10]} 37. Rxh7+ {[%clk 0:01:27]}  Kxh7 {[%clk 0:00:11]} 38. Nd4 {[%clk 0:01:26]}  Kg6 {[%clk 0:00:09]} 39. Bb7 {[%clk 0:01:25]}  Be5 {[%clk 0:00:07]} 40. Nc6 {[%clk 0:01:21]}  Bd6 {[%clk 0:00:06]} 41. Bxa6 {[%clk 0:01:20]}  b4 {[%clk 0:00:07]} 42. Bd3 {[%clk 0:01:20]}  Kf6 {[%clk 0:00:06]} 43. Kg1 {[%clk 0:01:17]}  Bc5+ {[%clk 0:00:04]} 44. Kf1 {[%clk 0:01:17]}  Be8 {[%clk 0:00:04]} 45. Na5 {[%clk 0:01:15]}  Ke5 {[%clk 0:00:03]} 46. Ke2 {[%clk 0:01:13]}  Bh5+ {[%clk 0:00:02]} 47. Kd2 {[%clk 0:01:12]}  Kf4 {[%clk 0:00:02]} 48. Nc4 {[%clk 0:01:06]}  Kg3 {[%clk 0:00:00]} 49. e5 {[%clk 0:01:04]} 1-0

[Event "November 21 Early 2023"]
[Site "https://www.chess.com"]
[Date "2023.11.21"]
[Round "9"]
[White "Herzog2012"]
[Black "ChessLebaneseSalah"]
[Result "0-1"]
[Board "110"]
[TimeControl "180+1"]
[WhiteElo "2533"]
[BlackElo "2397"]
[WhiteClock "0:00:00"]
[BlackClock "0:00:55"]

1. e4 {[%clk 0:02:58]}  c5 {[%clk 0:02:58]} 2. Nf3 {[%clk 0:02:56]}  d6 {[%clk 0:02:58]} 3. d4 {[%clk 0:02:57]}  cxd4 {[%clk 0:02:59]} 4. Nxd4 {[%clk 0:02:58]}  Nf6 {[%clk 0:02:59]} 5. Nc3 {[%clk 0:02:58]}  Nc6 {[%clk 0:02:59]} 6. Bg5 {[%clk 0:02:57]}  e6 {[%clk 0:02:56]} 7. Qd2 {[%clk 0:02:56]}  a6 {[%clk 0:02:56]} 8. O-O-O {[%clk 0:02:56]}  Bd7 {[%clk 0:02:55]} 9. f4 {[%clk 0:02:56]}  Be7 {[%clk 0:02:54]} 10. Nf3 {[%clk 0:02:07]}  b5 {[%clk 0:02:54]} 11. e5 {[%clk 0:02:06]}  b4 {[%clk 0:02:53]} 12. exf6 {[%clk 0:01:58]}  bxc3 {[%clk 0:02:53]} 13. Qxc3 {[%clk 0:01:57]}  gxf6 {[%clk 0:02:51]} 14. Bh6 {[%clk 0:01:55]}  d5 {[%clk 0:02:36]} 15. f5 {[%clk 0:01:50]}  Nb4 {[%clk 0:02:29]} 16. Kb1 {[%clk 0:01:36]}  Rc8 {[%clk 0:02:08]} 17. Qb3 {[%clk 0:01:29]}  Qa5 {[%clk 0:01:58]} 18. a3 {[%clk 0:00:46]}  Ba4 {[%clk 0:01:53]} 19. axb4 {[%clk 0:00:46]}  Bxb4 {[%clk 0:01:49]} 20. Nd4 {[%clk 0:00:30]}  Bxb3 {[%clk 0:01:43]} 21. Nxb3 {[%clk 0:00:31]}  Qc7 {[%clk 0:01:32]} 22. Bd3 {[%clk 0:00:18]}  Rg8 {[%clk 0:01:23]} 23. c3 {[%clk 0:00:09]}  Bxc3 {[%clk 0:01:11]} 24. Rc1 {[%clk 0:00:07]}  Qb6 {[%clk 0:01:08]} 25. Ka2 {[%clk 0:00:07]}  Rxg2 {[%clk 0:01:04]} 26. Bd2 {[%clk 0:00:02]}  Rxd2 {[%clk 0:01:01]} 27. Bc2 {[%clk 0:00:02]}  Rb8 {[%clk 0:00:54]} 28. bxc3 {[%clk 0:00:01]}  Rxc2+ {[%clk 0:00:55]} 29. Rxc2 {[%clk 0:00:01]}  Qxb3+ {[%clk 0:00:55]} 30. Ka1 {[%clk 0:00:00]}  Qa3+ {[%clk 0:00:55]} 0-1

[Event "November 21 Early 2023"]
[Site "https://www.chess.com"]
[Date "2023.11.21"]
[Round "9"]
[White "LeoLV10"]
[Black "Ovezdurdyyeva, Jemal"]
[Result "1-0"]
[Board "112"]
[TimeControl "180+1"]
[BlackFideId "14001888"]
[WhiteElo "2512"]
[BlackElo "2086"]
[BlackTeam "TKM"]
[WhiteClock "0:00:12"]
[BlackClock "0:00:07"]

1. e4 {[%clk 0:02:54]}  d6 {[%clk 0:02:59]} 2. d4 {[%clk 0:02:50]}  Nf6 {[%clk 0:03:00]} 3. Nc3 {[%clk 0:02:51]}  g6 {[%clk 0:03:01]} 4. f4 {[%clk 0:02:51]}  c6 {[%clk 0:03:01]} 5. Nf3 {[%clk 0:02:50]}  b5 {[%clk 0:03:00]} 6. a3 {[%clk 0:02:50]}  Bg7 {[%clk 0:03:00]} 7. Bd3 {[%clk 0:02:48]}  Kf8 {[%clk 0:02:59]} 8. O-O {[%clk 0:02:48]}  h5 {[%clk 0:02:56]} 9. e5 {[%clk 0:02:45]}  Ng4 {[%clk 0:02:36]} 10. h3 {[%clk 0:02:44]}  Nh6 {[%clk 0:02:36]} 11. Be3 {[%clk 0:02:44]}  Nf5 {[%clk 0:02:27]} 12. Bf2 {[%clk 0:02:41]}  d5 {[%clk 0:02:15]} 13. Ng5 {[%clk 0:02:23]}  Na6 {[%clk 0:02:12]} 14. Qe2 {[%clk 0:02:12]}  Nc7 {[%clk 0:02:12]} 15. Nd1 {[%clk 0:01:33]}  Ne6 {[%clk 0:02:11]} 16. Nxe6+ {[%clk 0:01:33]}  Bxe6 {[%clk 0:02:11]} 17. c3 {[%clk 0:01:33]}  Bh6 {[%clk 0:02:10]} 18. Be1 {[%clk 0:01:32]}  Qd7 {[%clk 0:02:07]} 19. Ne3 {[%clk 0:01:28]}  Kg8 {[%clk 0:01:46]} 20. Rf3 {[%clk 0:01:03]}  Kh7 {[%clk 0:01:42]} 21. Bd2 {[%clk 0:00:58]}  a5 {[%clk 0:01:33]} 22. Raf1 {[%clk 0:00:54]}  b4 {[%clk 0:01:24]} 23. Nxf5 {[%clk 0:00:50]}  Bxf5 {[%clk 0:01:23]} 24. cxb4 {[%clk 0:00:47]}  axb4 {[%clk 0:01:16]} 25. Bxb4 {[%clk 0:00:47]}  Rhe8 {[%clk 0:01:10]} 26. Qc2 {[%clk 0:00:38]}  e6 {[%clk 0:01:03]} 27. Kh2 {[%clk 0:00:21]}  Rg8 {[%clk 0:00:36]} 28. Rg1 {[%clk 0:00:19]}  h4 {[%clk 0:00:31]} 29. Be1 {[%clk 0:00:17]}  Qe7 {[%clk 0:00:23]} 30. Bxf5 {[%clk 0:00:14]}  gxf5 {[%clk 0:00:15]} 31. Qf2 {[%clk 0:00:14]}  Rab8 {[%clk 0:00:15]} 32. Bb4 {[%clk 0:00:12]}  Qd8 {[%clk 0:00:14]} 33. Rc1 {[%clk 0:00:10]}  Rb6 {[%clk 0:00:12]} 34. Rc2 {[%clk 0:00:09]}  Bf8 {[%clk 0:00:10]} 35. Be1 {[%clk 0:00:10]}  Be7 {[%clk 0:00:10]} 36. Rfc3 {[%clk 0:00:10]}  Qd7 {[%clk 0:00:09]} 37. Qf3 {[%clk 0:00:09]}  Rc8 {[%clk 0:00:08]} 38. Qh5+ {[%clk 0:00:09]}  Kg7 {[%clk 0:00:07]} 39. Bxh4 {[%clk 0:00:10]}  Bxh4 {[%clk 0:00:06]} 40. Qxh4 {[%clk 0:00:11]}  Rcb8 {[%clk 0:00:07]} 41. Rg3+ {[%clk 0:00:10]}  Kf8 {[%clk 0:00:07]} 42. Qh8+ {[%clk 0:00:10]}  Ke7 {[%clk 0:00:07]} 43. Qf6+ {[%clk 0:00:11]}  Ke8 {[%clk 0:00:07]} 44. Rg8# {[%clk 0:00:12]} 1-0

[Event "November 21 Early 2023"]
[Site "https://www.chess.com"]
[Date "2023.11.21"]
[Round "9"]
[White "Mejia, Cherry Ann"]
[Black "Mystery2007"]
[Result "0-1"]
[Board "113"]
[TimeControl "180+1"]
[WhiteFideId "5206880"]
[WhiteElo "2009"]
[BlackElo "2506"]
[WhiteTeam "PHI"]
[WhiteClock "0:00:04"]
[BlackClock "0:00:41"]

1. e4 {[%clk 0:02:56]}  a6 {[%clk 0:03:00]} 2. d4 {[%clk 0:02:51]}  e6 {[%clk 0:03:01]} 3. Nf3 {[%clk 0:02:49]}  b5 {[%clk 0:02:59]} 4. Bd3 {[%clk 0:02:46]}  Bb7 {[%clk 0:02:58]} 5. O-O {[%clk 0:02:46]}  c5 {[%clk 0:02:58]} 6. a4 {[%clk 0:02:39]}  c4 {[%clk 0:02:56]} 7. Be2 {[%clk 0:02:35]}  Bxe4 {[%clk 0:02:55]} 8. Nc3 {[%clk 0:02:29]}  Bb7 {[%clk 0:02:41]} 9. axb5 {[%clk 0:02:28]}  axb5 {[%clk 0:02:41]} 10. Rxa8 {[%clk 0:02:28]}  Bxa8 {[%clk 0:02:42]} 11. Nxb5 {[%clk 0:02:28]}  Nf6 {[%clk 0:02:09]} 12. Bxc4 {[%clk 0:02:27]}  Be7 {[%clk 0:01:58]} 13. Bf4 {[%clk 0:02:25]}  O-O {[%clk 0:01:46]} 14. Qe2 {[%clk 0:01:37]}  d6 {[%clk 0:01:45]} 15. Re1 {[%clk 0:01:36]}  Qb6 {[%clk 0:01:42]} 16. Bxe6 {[%clk 0:01:30]}  fxe6 {[%clk 0:01:22]} 17. Qxe6+ {[%clk 0:01:30]}  Rf7 {[%clk 0:01:18]} 18. Nxd6 {[%clk 0:00:34]}  Bd5 {[%clk 0:00:49]} 19. Nc8 {[%clk 0:00:14]}  Qxe6 {[%clk 0:00:44]} 20. Rxe6 {[%clk 0:00:08]}  Bxe6 {[%clk 0:00:45]} 21. Nxe7+ {[%clk 0:00:07]}  Rxe7 {[%clk 0:00:44]} 22. Bxb8 {[%clk 0:00:04]}  Rb7 {[%clk 0:00:41]} 0-1

[Event "November 21 Early 2023"]
[Site "https://www.chess.com"]
[Date "2023.11.21"]
[Round "9"]
[White "alfianasybullina"]
[Black "Rietze, Clemens, Dr."]
[Result "0-1"]
[Board "116"]
[TimeControl "180+1"]
[BlackFideId "24620351"]
[WhiteElo "2330"]
[BlackElo "2288"]
[BlackTeam "GER"]
[WhiteClock "0:01:10"]
[BlackClock "0:00:38"]

1. d4 {[%clk 0:03:00]}  Nf6 {[%clk 0:02:53]} 2. Nf3 {[%clk 0:03:00]}  g6 {[%clk 0:02:53]} 3. Bf4 {[%clk 0:03:01]}  Bg7 {[%clk 0:02:53]} 4. Nc3 {[%clk 0:03:01]}  d5 {[%clk 0:02:48]} 5. e3 {[%clk 0:02:58]}  O-O {[%clk 0:02:48]} 6. h3 {[%clk 0:02:58]}  c5 {[%clk 0:02:32]} 7. dxc5 {[%clk 0:02:54]}  Qa5 {[%clk 0:02:30]} 8. Be2 {[%clk 0:02:48]}  Ne4 {[%clk 0:02:18]} 9. O-O {[%clk 0:02:40]}  Bxc3 {[%clk 0:02:18]} 10. bxc3 {[%clk 0:02:37]}  Nxc3 {[%clk 0:02:18]} 11. Qe1 {[%clk 0:02:36]}  Nxe2+ {[%clk 0:02:18]} 12. Qxe2 {[%clk 0:02:37]}  Qxc5 {[%clk 0:02:19]} 13. Rfd1 {[%clk 0:02:35]}  Nc6 {[%clk 0:02:18]} 14. Ne5 {[%clk 0:02:29]}  Nxe5 {[%clk 0:02:03]} 15. Bxe5 {[%clk 0:02:28]}  f6 {[%clk 0:02:04]} 16. Bd4 {[%clk 0:02:26]}  Qc6 {[%clk 0:02:02]} 17. Rac1 {[%clk 0:02:20]}  e5 {[%clk 0:02:02]} 18. Ba1 {[%clk 0:02:20]}  Be6 {[%clk 0:02:01]} 19. f4 {[%clk 0:02:18]}  Qc7 {[%clk 0:01:44]} 20. e4 {[%clk 0:02:04]}  d4 {[%clk 0:01:07]} 21. Qf2 {[%clk 0:01:38]}  Qc4 {[%clk 0:01:01]} 22. c3 {[%clk 0:01:28]}  d3 {[%clk 0:01:01]} 23. f5 {[%clk 0:01:24]}  gxf5 {[%clk 0:00:59]} 24. exf5 {[%clk 0:01:24]}  Bd5 {[%clk 0:00:59]} 25. Qg3+ {[%clk 0:01:22]}  Kh8 {[%clk 0:00:58]} 26. Qxd3 {[%clk 0:01:21]}  Qc5+ {[%clk 0:00:58]} 27. Kh2 {[%clk 0:01:19]}  Bc6 {[%clk 0:00:50]} 28. c4 {[%clk 0:01:14]}  Rg8 {[%clk 0:00:39]} 29. g4 {[%clk 0:01:10]}  Qf2# {[%clk 0:00:38]} 0-1